fUSD/lending_fUSD_20241104
["ID","MTS","AMOUNT","RATE_DAILY","PERIOD"]
[341310907,1730755834066,-7850.73354969,0.00031878,15]
[341310908,1730755834075,-193.86955363,0.000319,3]
[341310909,1730755834084,-200.0,0.000319,2]
[341310910,1730755834093,-5800.0,0.000319,2]
[341310911,1730755834103,-220.0,0.000319,2]
[341310912,1730755834112,-689.53038806,0.000319,2]
[341310913,1730755834128,-689.53038806,0.000319,2]
[341310914,1730755834137,-1396.0,0.000319,2]
[341310915,1730755834146,-7850.73354969,0.000319,15]
[341310916,1730755834155,-200.0,0.000319,11]
[341310917,1730755834164,-1171.71242233,0.000319,2]
[341310918,1730755834174,-228.58717885,0.000319,4]
[341310919,1730755834183,-212.04826692,0.0003199,2]
[341310920,1730755834192,-212.04826692,0.0003199,2]
[341310921,1730755834202,-212.04826692,0.0003199,2]
[341310922,1730755834211,-220.68419862,0.00031999,2]
[341310923,1730755834220,-300.0,0.00031999,10]
[341310924,1730755834230,-300.0,0.00031999,10]
[341310925,1730755834238,-300.0,0.00031999,10]
[341310926,1730755834248,-300.0,0.00031999,10]
[341310927,1730755834256,-155.29383763,0.00031999,10]
[341310928,1730755834271,-151.61046772,0.00031999,10]
[341310929,1730755834281,-2212.22261885,0.00031999,2]
[341310946,1730755838378,-317.70536493,0.00031999,2]
[341310948,1730755838387,-5710.90623507,0.00032,15]
[341310950,1730755838398,-2413.85031869,0.00032,15]
[341310953,1730755838413,-135047.00400001,0.00032,15]
[341310959,1730755838447,-796.93037151,0.00032,15]
[341310970,1730755838593,-377.09666846,0.00032,15]
[341310971,1730755838605,-390.23445215,0.00032,15]
[341310972,1730755838616,-347.645,0.00032,15]
[341310973,1730755838628,-336.5,0.00032,15]
[341310974,1730755838639,-2020.29828,0.00032,15]
[341310975,1730755838863,-1080.357,0.00032,15]
[341311122,1730755840314,-30858.71451132,0.00032,15]
[341311124,1730755840328,-12073.70000001,0.00032,15]
[341311125,1730755840381,-289174.65986247,0.00032,15]
[341311126,1730755840392,-33836.07877477,0.00032,15]
[341311127,1730755840403,-7203.6,0.00032,15]
[341311135,1730755840572,-232.84575938,0.00032,15]
[341311136,1730755840585,-569.442,0.00032,15]
[341311142,1730755843767,-543.69,0.00030263,2]
[341311145,1730755843776,-503.07963952,0.00030279,2]
[341311147,1730755843787,-40.61036048,0.00030279,2]
[341311149,1730755843796,-543.69,0.00030295,2]
[341311151,1730755843806,-543.69,0.00030311,2]
[341311153,1730755843815,-543.69,0.00030327,2]
[341311154,1730755843824,-12.01133952,0.00030343,2]
[341311155,1730755843836,-277.25464627,0.00030343,2]
[341311156,1730755843847,-254.42401421,0.00030343,2]
[341311157,1730755843856,-543.69,0.00030359,2]
[341311158,1730755843865,-543.69,0.00030374,2]
[341311159,1730755843875,-543.69,0.0003039,2]
[341311160,1730755843885,-543.69,0.00030406,2]
[341311161,1730755843894,-543.69,0.00030422,2]
[341311162,1730755843903,-543.69,0.00030438,2]
[341311163,1730755844064,-200.0,0.000319,2]
[341311165,1730755844075,-9663.43598579,0.00032,15]
[341311169,1730755844108,-543.69,0.00030454,2]
[341311171,1730755844117,-2813.01,0.00032,15]
[341311173,1730755844130,-1400.13485142,0.00032,15]
[341311176,1730755844142,-661.80384,0.00032,15]
[341311178,1730755844154,-2399.99999994,0.00032,15]
[341311180,1730755844166,-259.0846187,0.00032,15]
[341311184,1730755844189,-366.34415855,0.00032,15]
[341311187,1730755844208,-543.69,0.0003047,2]
[341311189,1730755844218,-180.649208,0.00032,15]
[341311191,1730755844231,-11725.28430905,0.00032,15]
[341311193,1730755844241,-7963.80368445,0.00032,15]
[341311195,1730755844253,-61602.89003669,0.00032,15]
[341311197,1730755844265,-2105.37,0.00032,15]
[341311274,1730755846442,-543.69,0.00030486,2]
[341311275,1730755846453,-543.69,0.00030502,2]
[341311276,1730755846463,-543.69,0.00030518,2]
[341311277,1730755846473,-396.48884502,0.00030534,2]
[341311278,1730755846485,-147.20115498,0.00030534,2]
[341311279,1730755846495,-543.69,0.0003055,2]
[341311280,1730755846505,-543.69,0.00030565,2]
[341311281,1730755846514,-29327.96676464,0.00032,15]
[341311282,1730755846526,-308.4,0.00032,15]
[341311283,1730755846538,-478.05370225,0.00032,15]
[341311284,1730755846550,-939.185648,0.00032,15]
[341311285,1730755846562,-792.33,0.00032,15]
[341311286,1730755846642,-535.93800705,0.00032,15]
[341311287,1730755846654,-835.90046099,0.00032,15]
[341311288,1730755846665,-250.93499564,0.00032,15]
[341311289,1730755846678,-1749.79386783,0.00032,15]
[341311292,1730755846697,-67482.69139487,0.00032,15]
[341311299,1730756190000,-150.0,0.00018123,2]
[341311301,1730756266214,150.0,0.00015342,2]
[341311302,1730756266236,3.95,0.00015342,2]
[341311336,1730757031475,-250.0,0.00021,2]
[341311337,1730757031484,-157.51,0.00021918,2]
[341311338,1730757031494,-300.0,0.00023,2]
[341311339,1730757031503,-350.0,0.00025,2]
[341311340,1730757031512,-697.0,0.00027,2]
[341311341,1730757031522,-265.6046301,0.00027,2]
[341311342,1730757031559,-134.3953699,0.00027,2]
[341311343,1730757031568,-207.4227301,0.00027,2]
[341311344,1730757031579,-1174.6169,0.00027,2]
[341311345,1730757031591,-1046.7207912,0.00027,2]
[341311346,1730757031602,-337.69090967,0.00027,2]
[341311347,1730757031613,-340.96554811,0.00027,2]
[341311348,1730757035628,-34.34500582,0.00027,2]
[341311349,1730757035826,-153.95,0.00027507,2]
[341311350,1730757035835,-150.99,0.00027507,2]
[341311351,1730757035845,-14.47509041,0.00027507,2]
[341311352,1730757035865,-3486.91490959,0.00027507,2]
[341311353,1730757035875,-643.31,0.00027712,2]
[341311354,1730757035885,-999.99,0.00027712,2]
[341311355,1730757035895,-897.56769841,0.00028,30]
[341311356,1730757035905,-499.99,0.00028,2]
[341311357,1730757035914,-159.58,0.00028011,2]
[341311359,1730757035923,-1386.7,0.00028238,2]
[341311361,1730757035932,-250.0,0.0002838,2]
[341311363,1730757035941,-1000.0,0.00028389,2]
[341311365,1730757035950,-150.0,0.00028402,7]
[341311367,1730757035962,-23900.0,0.00028402,2]
[341311368,1730757035971,-178.48,0.00028439,120]
[341311369,1730757035979,-500.0,0.00028467,2]
[341311370,1730757035988,-702.55801009,0.00028976,2]
[341311371,1730757036015,-1262.78337545,0.00028976,2]
[341311372,1730757036026,-305.66135233,0.00028976,2]
[341311381,1730757037508,-1956.81726213,0.00028976,2]
[341311382,1730757037518,-450.0,0.00029,2]
[341311383,1730757037527,-162.03,0.0002938,2]
[341311384,1730757037536,-250.0,0.00029415,2]
[341311385,1730757037545,-4103.88,0.00029422,2]
[341311386,1730757037555,-251.71,0.00029424,2]
[341311387,1730757037564,-4227.82,0.00029442,2]
[341311388,1730757037573,-764.02,0.00029485,2]
[341311389,1730757037582,-200.0,0.00029521,2]
[341311390,1730757037591,-181.47,0.00029565,2]
[341311391,1730757037601,-278.17,0.00029639,30]
[341311392,1730757037610,-173.67,0.00029675,2]
[341311393,1730757037619,-1418.77,0.00029744,2]
[341311394,1730757037628,-165.73,0.00029788,2]
[341311395,1730757037638,-166.61,0.00029846,2]
[341311396,1730757037648,-1000.0,0.00029852,2]
[341311397,1730757037657,-250.0,0.0002987,2]
[341311398,1730757037667,-151.47,0.0002989,15]
[341311399,1730757037678,-4227.82,0.00029907,2]
[341311400,1730757037688,-1000.0,0.00029926,2]
[341311401,1730757037698,-200.0,0.0002993,2]
[341311402,1730757037709,-329.14726054,0.00029936,2]
[341311403,1730757037719,-643.31,0.00029976,2]
[341311404,1730757037727,-403.69,0.0002999,10]
[341311405,1730757037738,-210.83608121,0.0002999,2]
[341311406,1730757037749,-166.61,0.00029995,2]
[341311407,1730757037759,-454.10482415,0.00029999,2]
[341311408,1730757037772,-167.8733769,0.00029999,2]
[341311409,1730757037783,-306.58,0.0003,2]
[341311410,1730757037793,-120778.12542638,0.0003,2]
[341311411,1730757037810,-6705.36,0.0003,2]
[341311412,1730757037822,-670.67,0.0003,2]
[341311413,1730757037833,-671.671,0.0003,2]
[341311414,1730757037843,-29599.5,0.0003,2]
[341311415,1730757037854,-27790.89106387,0.0003,2]
[341311416,1730757037865,-378.36552292,0.0003,2]
[341311417,1730757037876,-625.39191185,0.0003,2]
[341311418,1730757037890,-15744.52329574,0.0003,2]
[341311419,1730757037901,-167176.50604231,0.0003,2]
[341311420,1730757037911,-13403.8,0.0003,2]
[341311421,1730757037922,-269.54,0.0003,2]
[341311422,1730757037933,-13074.73515205,0.0003,2]
[341311499,1730757039464,-1383.89329523,0.0003,2]
[341311500,1730757039475,-404.625636,0.0003,2]
[341311501,1730757039526,-888.35398916,0.0003,2]
[341311502,1730757039537,-6784.36477021,0.0003,2]
[341311503,1730757039548,-633.34824436,0.0003,2]
[341311504,1730757039559,-3042.98227866,0.0003,2]
[341311505,1730757039650,-661.80384,0.0003,2]
[341311506,1730757039746,-4075.03144646,0.0003,2]
[341311507,1730757039770,-31331.79764397,0.0003,2]
[341311508,1730757039832,-2026635.71944083,0.0003,2]
[341311509,1730757039841,-266.84,0.00030036,2]
[341311510,1730757039851,-181.01,0.00030111,120]
[341311511,1730757039861,-166.61,0.00030144,2]
[341311512,1730757039872,-178.82,0.00030176,2]
[341311513,1730757039882,-4227.82,0.00030373,2]
[341311514,1730757039891,-1615.0,0.00030643,2]
[341311516,1730757039900,-151.495,0.0003077,5]
[341311517,1730757039909,-4227.82,0.00030838,2]
[341311519,1730757039918,-162.03,0.00030849,2]
[341311520,1730757039928,-500.0,0.00031,2]
[341311521,1730757039936,-4227.82,0.00031304,2]
[341311522,1730757039945,-168.67,0.00031506,2]
[341311523,1730757039954,-151.54,0.0003165,10]
[341311525,1730757039963,-17513.2001439,0.0003168,2]
[341311527,1730757039972,-17407.4939,0.000317,2]
[341311529,1730757039982,-301.7171,0.000317,2]
[341311531,1730757039992,-14011.3954,0.000317,2]
[341311533,1730757040002,-819.0234,0.000317,2]
[341311535,1730757040012,-647.0492,0.000317,2]
[341311537,1730757040021,-535.14799954,0.000317,2]
[341311539,1730757040030,-1474.44000834,0.000317,2]
[341311541,1730757040040,-157.47145344,0.000317,2]
[341311543,1730757040049,-4227.82,0.0003177,2]
[341311545,1730757040058,-500.0,0.00031773,2]
[341311547,1730757040067,-150.110506,0.00031798,2]
[341311549,1730757040076,-150.110506,0.00031798,3]
[341311551,1730757040086,-150.110506,0.00031798,4]
[341311553,1730757040095,-150.110506,0.00031798,5]
[341311555,1730757040104,-13522.3864,0.000318,2]
[341311557,1730757040113,-30381.8026,0.000318,2]
[341311559,1730757040123,-187482.1321,0.000318,2]
[341311561,1730757040133,-4005.202,0.000318,2]
[341311563,1730757040145,-535.14799954,0.000318,2]
[341311565,1730757040155,-1474.44000834,0.000318,2]
[341311567,1730757040164,-311.84801618,0.00031873,5]
[341311568,1730757040174,-500.74958656,0.00031873,5]
[341311570,1730757040184,-551.31730035,0.00031873,5]
[341311572,1730757040193,-500.0,0.00031873,5]
[341311574,1730757040203,-534.48660406,0.00031873,2]
[341311577,1730757040214,-500.0,0.00031873,5]
[341311579,1730757040225,-500.0,0.00031873,5]
[341311581,1730757040235,-210.83608121,0.0003189,2]
[341311583,1730757040245,-150.110506,0.00031898,2]
[341311585,1730757040257,-150.110506,0.00031898,3]
[341311587,1730757040268,-150.110506,0.00031898,4]
[341311589,1730757040279,-150.110506,0.00031898,5]
[341311591,1730757040290,-200.0,0.000319,2]
[341311593,1730757040299,-4114.7456867,0.000319,2]
[341311596,1730757040311,-55785.0548,0.000319,2]
[341311598,1730757040322,-1684.2814422,0.000319,2]
[341311600,1730757040331,-245000.0,0.000319,2]
[341311602,1730757040341,-932.481,0.000319,2]
[341311604,1730757040350,-3202.94705275,0.000319,2]
[341311606,1730757040359,-5923.502,0.000319,2]
[341311607,1730757040369,-37798.0772,0.000319,2]
[341311609,1730757040379,-384.4317,0.000319,2]
[341311610,1730757040390,-151.0,0.000319,7]
[341311611,1730757040399,-151.0,0.000319,7]
[341311612,1730757040408,-269.996018,0.000319,7]
[341311613,1730757040417,-151.0,0.000319,7]
[341311614,1730757040426,-269.996018,0.000319,7]
[341311615,1730757040437,-151.0,0.000319,7]
[341311616,1730757040446,-151.0,0.000319,7]
[341311617,1730757040457,-309.493847,0.000319,7]
[341311618,1730757040466,-309.493847,0.000319,7]
[341311619,1730757040477,-9626.056359,0.000319,7]
[341311620,1730757040487,-9626.056359,0.000319,7]
[341311621,1730757040497,-151.0,0.000319,7]
[341311622,1730757040506,-152.68557,0.000319,7]
[341311623,1730757040516,-535.14799954,0.000319,2]
[341311624,1730757040526,-151.0,0.000319,7]
[341311625,1730757040536,-151.0,0.000319,7]
[341311626,1730757040545,-151.0,0.000319,7]
[341311627,1730757040555,-151.0,0.000319,7]
[341311628,1730757040565,-1474.44000834,0.000319,2]
[341311629,1730757040575,-263.464404,0.000319,7]
[341311630,1730757040584,-151.0,0.000319,7]
[341311631,1730757040593,-329.14726054,0.000319,2]
[341311632,1730757040602,-151.0,0.000319,7]
[341311633,1730757040611,-1000.0,0.00031938,2]
[341311634,1730757040621,-178.48,0.00031994,120]
[341311635,1730757040630,-595.06970383,0.00031999,2]
[341311636,1730757040639,-297.53485192,0.00031999,2]
[341311637,1730757040648,-297.53485191,0.00031999,2]
[341311638,1730757040657,-300.0,0.00031999,10]
[341311639,1730757040667,-300.0,0.00031999,10]
[341311640,1730757040676,-300.0,0.00031999,10]
[341311641,1730757040686,-972.71489637,0.00031999,2]
[341311642,1730757040696,-508991.237279,0.00031999,2]
[341311643,1730757040706,-201.359813,0.00031999,7]
[341311644,1730757040715,-151.0,0.00031999,7]
[341311645,1730757040724,-224.095769,0.00031999,7]
[341311646,1730757040733,-151.0,0.00031999,7]
[341311647,1730757040743,-266.607638,0.00031999,7]
[341311648,1730757040752,-151.0,0.00031999,7]
[341311649,1730757040762,-151.0,0.00031999,7]
[341311650,1730757040773,-173.2,0.00031999,7]
[341311651,1730757040784,-151.0,0.00031999,7]
[341311652,1730757040794,-151.0,0.00031999,7]
[341311653,1730757040804,-151.0,0.00031999,7]
[341311654,1730757040814,-151.0,0.00031999,7]
[341311655,1730757040824,-252.08884,0.00031999,7]
[341311656,1730757040833,-151.0,0.00031999,7]
[341311657,1730757040842,-252.08884,0.00031999,7]
[341311658,1730757040851,-151.0,0.00031999,7]
[341311659,1730757040861,-151.0,0.00031999,7]
[341311660,1730757040873,-151.0,0.00031999,7]
[341311661,1730757040881,-151.0,0.00031999,7]
[341311662,1730757040891,-155.334306,0.00031999,7]
[341311663,1730757040900,-151.0,0.00031999,7]
[341311664,1730757040909,-151.0,0.00031999,7]
[341311665,1730757040917,-151.0,0.00031999,7]
[341311666,1730757040927,-154.579805,0.00031999,7]
[341311667,1730757040936,-151.0,0.00031999,7]
[341311668,1730757040945,-151.0,0.00031999,7]
[341311669,1730757040956,-151.0,0.00031999,7]
[341311670,1730757040968,-151.0,0.00031999,7]
[341311671,1730757040977,-151.0,0.00031999,7]
[341311672,1730757040986,-151.0,0.00031999,7]
[341311673,1730757040995,-222.546785,0.00031999,7]
[341311674,1730757041004,-151.0,0.00031999,7]
[341311675,1730757041013,-151.0,0.00031999,7]
[341311676,1730757041022,-151.0,0.00031999,7]
[341311677,1730757041031,-274.391234,0.00031999,7]
[341311678,1730757041041,-151.0,0.00031999,7]
[341311679,1730757041051,-151.0,0.00031999,7]
[341311680,1730757041060,-151.0,0.00031999,7]
[341311681,1730757041069,-151.0,0.00031999,7]
[341311682,1730757041078,-151.0,0.00031999,7]
[341311683,1730757041087,-156.175933,0.00031999,7]
[341311684,1730757041096,-151.0,0.00031999,7]
[341311685,1730757041105,-151.0,0.00031999,7]
[341311686,1730757041114,-151.0,0.00031999,7]
[341311687,1730757041123,-151.0,0.00031999,7]
[341311688,1730757041132,-151.0,0.00031999,7]
[341311689,1730757041143,-157.349718,0.00031999,7]
[341311690,1730757041152,-269.996018,0.00031999,7]
[341311691,1730757041161,-269.996018,0.00031999,7]
[341311692,1730757041170,-151.0,0.00031999,7]
[341311693,1730757041179,-309.493847,0.00031999,7]
[341311694,1730757041189,-309.493847,0.00031999,7]
[341311695,1730757041198,-9626.056359,0.00031999,7]
[341311696,1730757041211,-9626.056359,0.00031999,7]
[341311697,1730757041219,-151.0,0.00031999,7]
[341311698,1730757041229,-151.0,0.00031999,7]
[341311699,1730757041238,-176.729525,0.00031999,7]
[341311700,1730757041247,-151.0,0.00031999,7]
[341311701,1730757041255,-151.0,0.00031999,7]
[341311702,1730757041264,-151.0,0.00031999,7]
[341311703,1730757041273,-2680758.31952192,0.00032,15]
[341311704,1730757041488,-325.37451986,0.00032,15]
[341311705,1730757041511,-2193.99981592,0.00032,15]
[341311717,1730757042875,-404.754,0.0003179,3]
[341311718,1730757042888,-44.206,0.0003179,3]
[341311719,1730757042897,-151.0,0.000319,7]
[341311720,1730757042907,-157.093633,0.00031999,7]
[341311721,1730757042917,-12727.74198926,0.00032,15]
[341311722,1730757042991,-5582.14654,0.00032,15]
[341311723,1730757043050,-670.67,0.00032,15]
[341311725,1730757043335,-1709.07804178,0.00032,15]
[341311726,1730757043346,-1109.15731997,0.00032,15]
[341311727,1730757043358,-1796.23397625,0.00032,15]
[341311731,1730757043378,-366110.76893493,0.00032,15]
[341311733,1730757043389,-408.29295679,0.00032,15]
[341311734,1730757043400,-69396.94326519,0.00032,15]
[341311748,1730757045526,-500.0,0.00029973,2]
[341311751,1730757045536,-500.0,0.00029999,2]
[341311753,1730757045547,-156.14323244,0.00029999,2]
[341311755,1730757045556,-500.0,0.00029999,2]
[341311757,1730757045567,-18.85676756,0.00031342,2]
[341311765,1730757045642,-481.14323244,0.00031342,2]
[341311767,1730757045652,-1537.85676756,0.00032,15]
[341311769,1730757045665,-2258.03519662,0.00032,15]
[341311784,1730757045842,-419.38125,0.00032,15]
[341311787,1730757045854,-268.6,0.00032,15]
[341311789,1730757045870,-964.5,0.00032,15]
[341311791,1730757045883,-2253.56073916,0.00032,15]
[341311794,1730757045898,-3222.2958,0.00032,15]
[341311796,1730757045909,-38624.43362095,0.00032,15]
[341311798,1730757045922,-9599.20575246,0.00032,15]
[341311801,1730757045939,-500.0,0.00032,15]
[341311814,1730757095351,-247.251,0.00032,120]
[341311815,1730757104524,-150.0,0.00018123,2]
[341311816,1730757108538,-181.01,0.00033875,120]
[341311817,1730757121070,-278.17,0.00034807,120]
[341311818,1730757121098,-713.05198253,0.00034849,120]
[341311819,1730757121139,-178.48,0.00035549,120]
[341311820,1730757121174,-999.0,0.00035616,120]
[341311821,1730757121207,-1000.0,0.00035616,120]
[341311822,1730757121239,-1000.0,0.0003589,120]
[341311823,1730757133524,151.0,0.0003,120]
[341311824,1730757137382,297.84275,9.829e-05,2]
[341311827,1730757458389,299.16,0.00015342,2]
[341311833,1730758103347,156.56,0.00015342,2]
[341311836,1730758179567,180.88,0.000251,60]
[341311854,1730758231974,-250.0,0.00021,2]
[341311855,1730758231984,-299.16,0.00021745,2]
[341311856,1730758231993,-297.84275,0.00022245,2]
[341311857,1730758232003,-11.1888048,0.00023,2]
[341311877,1730758237984,-288.8111952,0.00023,2]
[341311878,1730758237994,-1803.0,0.000243,2]
[341311879,1730758238003,-500.0,0.00024932,2]
[341311880,1730758238013,-350.0,0.00025,2]
[341311881,1730758238024,-445.68,0.00025,2]
[341311882,1730758238033,-1734.38,0.00025,2]
[341311883,1730758238043,-400.0,0.00027,2]
[341311884,1730758238053,-299.16,0.00028147,2]
[341311885,1730758238062,-716.83,0.00028595,2]
[341311886,1730758238072,-2979.4,0.00028595,2]
[341311887,1730758238082,-289.32,0.00028595,2]
[341311888,1730758238093,-159.58,0.0002866,2]
[341311889,1730758238102,-150.99,0.0002866,2]
[341311890,1730758238112,-571.8,0.0002866,2]
[341311891,1730758238122,-450.0,0.00029,2]
[341311892,1730758238132,-250.0,0.00029562,2]
[341311893,1730758238142,-596.28,0.00029608,2]
[341311894,1730758238151,-250.0,0.0002971,2]
[341311895,1730758238160,-150.09,0.00029734,2]
[341311896,1730758238170,-1067.09,0.0002983,2]
[341311897,1730758238179,-300.0,0.00029849,2]
[341311898,1730758238188,-23900.0,0.0002985,2]
[341311899,1730758238197,-600.0,0.00029885,2]
[341311900,1730758238206,-209.6045,0.0003,2]
[341311901,1730758238216,-209.6045,0.0003,2]
[341311902,1730758238225,-245.40768838,0.0003,2]
[341311903,1730758238235,-165.607,0.0003,2]
[341311904,1730758238244,-165.607,0.0003,2]
[341311905,1730758238253,-3015.83068551,0.0003,2]
[341311907,1730758238262,-266.17,0.0003007,30]
[341311909,1730758238272,-596.28,0.00030083,2]
[341311911,1730758238281,-394.54,0.00030104,2]
[341311913,1730758238291,-150.0,0.00030157,7]
[341311915,1730758238301,-210.72,0.00030275,120]
[341311917,1730758238311,-173.67,0.000303,120]
[341311919,1730758238320,-162.03,0.00030308,2]
[341311920,1730758238330,-400.0,0.00030415,2]
[341311921,1730758238339,-155.32,0.00030513,2]
[341311922,1730758238349,-200.0,0.00030513,2]
[341311923,1730758238358,-596.28,0.00030559,2]
[341311924,1730758238367,-183.71,0.00030619,2]
[341311925,1730758238376,-716.83,0.00030859,2]
[341311926,1730758238385,-500.0,0.00031,2]
[341311927,1730758238394,-596.28,0.00031035,2]
[341311928,1730758238403,-1430.568,0.00031048,2]
[341311929,1730758238412,-416.13212039,0.00031498,2]
[341311930,1730758238421,-596.28,0.0003151,2]
[341311931,1730758238431,-416.1321204,0.00031526,2]
[341311933,1730758238440,-19967.102163,0.000318,2]
[341311935,1730758238449,-2500.0,0.000318,2]
[341311937,1730758238458,-2689.8522,0.000318,2]
[341311939,1730758238467,-1214.90154172,0.000318,15]
[341311940,1730758238477,-1214.90154167,0.00031811,15]
[341311941,1730758238486,-1214.90154167,0.00031822,15]
[341311942,1730758238495,-1214.90154167,0.00031833,15]
[341311943,1730758238505,-1214.90154167,0.00031844,15]
[341311944,1730758238513,-1214.90154167,0.00031856,15]
[341311945,1730758238523,-1214.90154167,0.00031867,15]
[341311946,1730758238532,-151.5504323,0.00031873,5]
[341311947,1730758238541,-500.0,0.00031873,5]
[341311948,1730758238550,-204.16942804,0.00031873,5]
[341311949,1730758238559,-1214.90154167,0.00031878,15]
[341311950,1730758238569,-1214.90154167,0.00031889,15]
[341311951,1730758238579,-150.110506,0.00031898,2]
[341311952,1730758238588,-150.110506,0.00031898,3]
[341311953,1730758238598,-150.110506,0.00031898,4]
[341311954,1730758238608,-150.110506,0.00031898,5]
[341311955,1730758238617,-150.110506,0.00031898,3]
[341311956,1730758238627,-150.110506,0.00031898,4]
[341311957,1730758238637,-150.110506,0.00031898,5]
[341311958,1730758238647,-150.110506,0.00031898,6]
[341311959,1730758238656,-150.110506,0.00031898,2]
[341311960,1730758238666,-267.51136383,0.00031899,2]
[341311961,1730758238676,-174.24113218,0.000319,2]
[341311962,1730758238686,-200.0,0.000319,2]
[341311963,1730758238695,-166278.6495,0.000319,2]
[341311964,1730758238704,-100000.0,0.000319,2]
[341311965,1730758238718,-2467.5277,0.000319,2]
[341311966,1730758238727,-1353.75067575,0.000319,2]
[341311967,1730758238736,-1353.75067575,0.000319,2]
[341311968,1730758238746,-294.70694054,0.000319,2]
[341311969,1730758238756,-1214.90154167,0.000319,15]
[341311970,1730758238765,-399.37342456,0.000319,2]
[341311971,1730758238774,-501.99746977,0.00031973,5]
[341311972,1730758238784,-500.91473184,0.00031973,5]
[341311973,1730758238793,-596.28,0.00031986,2]
[341311974,1730758238802,-6373.6015356,0.0003199,2]
[341311975,1730758238812,-23121.4685824,0.0003199,2]
[341311976,1730758238821,-2159.35705006,0.00031998,2]
[341311977,1730758238830,-199.97726328,0.00031999,10]
[341311978,1730758238841,-300.0,0.00031999,10]
[341311979,1730758238854,-300.0,0.00031999,10]
[341311980,1730758238863,-1883.13096159,0.00031999,15]
[341311981,1730758238872,-164.879,0.00031999,31]
[341311982,1730758238881,-999.9716,0.00031999,2]
[341311983,1730758238891,-55997.2829973,0.00031999,2]
[341311984,1730758238900,-88231.83486924,0.00032,15]
[341311988,1730758240001,-1343.775,0.000318,2]
[341311989,1730758240110,-263.56346496,0.000318,2]
[341312017,1730758242682,-529.65913504,0.000318,2]
[341312019,1730758242692,-512.61409236,0.00031973,5]
[341312021,1730758242703,-2302.1267726,0.00032,15]
[341312024,1730758242727,-500.0,0.00032,15]
[341312030,1730758242836,-7958.94520455,0.00032,15]
[341312031,1730758242849,-1007.12679123,0.00032,15]
[341312032,1730758242863,-10056.78045,0.00032,15]
[341312033,1730758242949,-16519.15865489,0.00032,15]
[341312048,1730758245720,-181.01,0.00031513,120]
[341312049,1730758245730,-2474.88257051,0.00032,15]
[341312050,1730758245742,-1348.45173899,0.00032,15]
[341312051,1730758245815,-462.98949685,0.00032,15]
[341312052,1730758245991,-33769.18385998,0.00032,15]
[341312053,1730758246003,-592.94786399,0.00032,15]
[341312054,1730758246014,-1673.275,0.00032,15]
[341312081,1730758696902,179.66,0.00015342,2]
[341312082,1730758725858,150.0,0.00015266,2]
[341312083,1730758775836,1199.0,0.00016002,2]
[341312085,1730759108343,5015.62,0.00016,2]
[341312086,1730759108370,2000.0,0.00016,2]
[341312087,1730759108398,9000000.0,0.00016,2]
[341312088,1730759109597,-13699.08878318,0.00016,2]
[341312089,1730759110173,-13699.08878318,0.00016,2]
[341312090,1730759111900,150.0,0.00012854,2]
[341312091,1730759111923,27.834,0.00012854,2]
[341312092,1730759120133,122.166,9e-05,2]
[341312093,1730759120155,150.0,9e-05,2]